fUST/lending_fUST_20260501
["ID","MTS","AMOUNT","RATE_DAILY","PERIOD"]
[421424881,1777625440000,-264.54172454,0.000176,2]
[421424877,1777625440000,-1303.71481362,0.000173,2]
[421424894,1777625440000,-822.0,0.00017898,2]
[421424878,1777625440000,-1303.71481362,0.000174,2]
[421424907,1777625440000,-462.8844391,0.00017999,2]
[421424850,1777625440000,-239.311095,0.00016438,2]
[421424855,1777625440000,-500.0,0.0001661,2]
[421424848,1777625440000,-239.311095,0.00016438,2]
[421424856,1777625440000,-500.0,0.0001661,2]
[421424853,1777625440000,-500.0,0.00016542,2]
[421424852,1777625440000,-628.21039826,0.00016439,2]
[421424854,1777625440000,-500.0,0.00016609,2]
[421424858,1777625440000,-500.0,0.0001661,2]
[421424857,1777625440000,-500.0,0.0001661,2]
[421424860,1777625440000,-500.0,0.0001661,2]
[421424861,1777625440000,-500.0,0.00016611,2]
[421424859,1777625440000,-500.0,0.0001661,2]
[421424862,1777625440000,-500.0,0.00016611,2]
[421424863,1777625440000,-500.0,0.00016611,2]
[421424851,1777625440000,-239.311095,0.00016438,2]
[421424876,1777625440000,-500.0,0.0001726,2]
[421424873,1777625440000,-212.0305998,0.0001715,2]
[421424872,1777625440000,-302.08,0.00017085,2]
[421424875,1777625440000,-185.0,0.00017189,2]
[421424864,1777625440000,-500.0,0.00016611,2]
[421424868,1777625440000,-500.0,0.00016726,2]
[421424871,1777625440000,-1000.0,0.00016903,2]
[421424874,1777625440000,-161.01232938,0.00017171,2]
[421424869,1777625440000,-500.0,0.00016726,2]
[421424866,1777625440000,-500.0,0.0001671,2]
[421424867,1777625440000,-2382.52,0.00016712,2]
[421424865,1777625440000,-500.0,0.00016611,2]
[421424870,1777625440000,-1000.0,0.00016903,2]
[421424912,1777625441000,-239.311095,0.00016438,2]
[421424908,1777625441000,-207.45,0.00018,21]
[421424909,1777625441000,-71691.62510262,0.00018,2]
[421424910,1777625441000,-239.311095,0.00016438,2]
[421424914,1777625441000,-239.311095,0.00016438,2]
[421424919,1777625441000,-7457.91225139,0.00018,2]
[421424915,1777625441000,-239.311095,0.00016438,2]
[421424911,1777625441000,-239.311095,0.00016438,2]
[421424917,1777625441000,-341.44406342,0.00018,2]
[421424916,1777625441000,-807.22090746,0.00018,2]
[421424918,1777625441000,-1635.85255131,0.00018,2]
[421424913,1777625441000,-239.311095,0.00016438,2]
[421424925,1777625443000,-1025.72800556,0.00018,2]
[421424924,1777625443000,-239.31109944,0.00016438,2]
[421424923,1777625443000,-239.311095,0.00016438,2]
[421424926,1777625444000,-454.96465952,0.00018,2]
[421424928,1777625444000,-18471.13165892,0.00018,2]
[421424927,1777625444000,-1483.79581799,0.00018,2]
[421424930,1777625447000,-4751.090303,0.00018,2]
[421424929,1777625447000,-248.909697,0.00017855,2]
[421425173,1777626054000,-4096.31764971,9.815e-05,2]
[421425175,1777626077000,-300.0,9.814e-05,2]
[421425178,1777626095000,-500.0,9.815e-05,2]
[421425179,1777626113000,-500.0,9.815e-05,2]
[421425180,1777626136000,-300.0,9.814e-05,2]
[421425181,1777626159000,-500.0,9.815e-05,2]
[421425182,1777626182000,-500.0,9.815e-05,2]
[421425209,1777626631000,-2466.95269902,9.334e-05,2]
[421425210,1777626631000,-888.34205459,9.334e-05,2]
[421425212,1777626631000,-370.0,9.428e-05,2]
[421425213,1777626631000,-552.0,9.428e-05,2]
[421425211,1777626631000,-1644.70524639,9.334e-05,2]
[421425215,1777626631000,-1794.77202627,9.429e-05,2]
[421425247,1777626639000,-301.0,0.00010475,2]
[421425248,1777626639000,-98.20361444,0.00010475,2]
[421425246,1777626639000,-483.40632204,9.815e-05,2]
[421425244,1777626639000,-300.0,9.523e-05,2]
[421425245,1777626639000,-500.0,9.815e-05,2]
[421425243,1777626639000,-300.0,9.523e-05,2]
[421425241,1777626639000,-1200.0,9.522e-05,2]
[421425242,1777626639000,-300.0,9.523e-05,2]
[421425239,1777626639000,-3205.22797373,9.429e-05,2]
[421425240,1777626639000,-195.3477726,9.476e-05,2]
[421425251,1777626640000,-201.79638556,0.00010475,2]
[421425252,1777626640000,-157.70461448,0.00010957,2]
[421425254,1777626640000,-300.0,0.00010957,2]
[421425255,1777626640000,-9.99128864,0.00010957,2]
[421425253,1777626640000,-142.29538552,0.00010957,2]
[421425277,1777626646000,-290.00871136,0.00010957,2]
[421425279,1777626646000,-300.0,0.00010957,2]
[421425278,1777626646000,-300.0,0.00010957,2]
[421425280,1777626646000,-300.0,0.00010957,2]
[421425281,1777626646000,-300.0,0.00010957,2]
[421425285,1777626646000,-300.0,0.00010957,2]
[421425284,1777626646000,-300.0,0.00010957,2]
[421425283,1777626646000,-300.0,0.00010957,2]
[421425286,1777626646000,-300.0,0.00010957,2]
[421425282,1777626646000,-300.0,0.00010957,2]
[421425292,1777626646000,-1000.0,0.00013699,2]
[421425287,1777626646000,-300.0,0.00010957,2]
[421425290,1777626646000,-230.51037167,0.00011476,2]
[421425289,1777626646000,-300.0,0.00010957,2]
[421425291,1777626646000,-265.67297074,0.00013477,2]
[421425293,1777626646000,-275.25294366,0.00013699,2]
[421425294,1777626646000,-112.63641985,0.00015477,2]
[421425296,1777626646000,-185.0,0.00016941,2]
[421425297,1777626646000,-4626.80085004,0.00017,2]
[421425288,1777626646000,-300.0,0.00010957,2]
[421425295,1777626646000,-188.19914996,0.00015477,2]
[421425305,1777626663000,135887.93080334,0.000219,120]
[421425447,1777626781000,11650.56731468,0.000216,120]
[421425449,1777626874000,208855.6833853,0.000219,120]
[421425707,1777627832000,-976.25152329,8.86e-05,2]
[421425708,1777627832000,-605.52935036,8.86e-05,2]
[421425743,1777627838000,-500.0,0.00010354,2]
[421425746,1777627838000,-492.22915331,0.00010354,2]
[421425742,1777627838000,-483.27106793,0.00010354,2]
[421425745,1777627838000,-500.0,0.00010354,2]
[421425744,1777627838000,-500.0,0.00010354,2]
[421425747,1777627838000,-500.0,0.00010354,2]
[421425750,1777627838000,-500.0,0.00010354,2]
[421425749,1777627838000,-500.0,0.00010354,2]
[421425737,1777627838000,-500.0,0.00010354,2]
[421425763,1777627838000,-500.0,0.00010354,2]
[421425751,1777627838000,-500.0,0.00010354,2]
[421425753,1777627838000,-500.0,0.00010354,2]
[421425754,1777627838000,-500.0,0.00010354,2]
[421425756,1777627838000,-500.0,0.00010354,2]
[421425755,1777627838000,-500.0,0.00010354,2]
[421425766,1777627838000,-500.0,0.00010354,2]
[421425768,1777627838000,-500.0,0.00010354,2]
[421425764,1777627838000,-500.0,0.00010354,2]
[421425752,1777627838000,-500.0,0.00010354,2]
[421425748,1777627838000,-336.64873559,0.00010354,2]
[421425736,1777627838000,-500.0,0.00010354,2]
[421425735,1777627838000,-500.0,0.00010354,2]
[421425727,1777627838000,-207.81705442,9.086e-05,2]
[421425726,1777627838000,-830.0,9.039e-05,2]
[421425722,1777627838000,-544.0,8.86e-05,2]
[421425721,1777627838000,-3418.21912635,8.86e-05,2]
[421425723,1777627838000,-1200.0,8.948e-05,2]
[421425725,1777627838000,-300.0,9.038e-05,2]
[421425724,1777627838000,-5000.0,8.949e-05,2]
[421425729,1777627838000,-300.0,9.223e-05,2]
[421425731,1777627838000,-420.0,0.00010145,2]
[421425739,1777627838000,-500.0,0.00010354,2]
[421425730,1777627838000,-1128.82811595,0.0001,2]
[421425728,1777627838000,-300.0,9.223e-05,2]
[421425741,1777627838000,-500.0,0.00010354,2]
[421425740,1777627838000,-500.0,0.00010354,2]
[421425732,1777627838000,-500.0,0.00010354,2]
[421425733,1777627838000,-500.0,0.00010354,2]
[421425734,1777627838000,-500.0,0.00010354,2]
[421425738,1777627838000,-500.0,0.00010354,2]
[421425762,1777627838000,-500.0,0.00010354,2]
[421425796,1777627838000,-500.0,0.00013698,2]
[421425758,1777627838000,-500.0,0.00010354,2]
[421425791,1777627838000,-282.63119402,0.00013086,2]
[421425790,1777627838000,-1265.494042,0.000129,2]
[421425784,1777627838000,-245.22412422,0.00011086,2]
[421425785,1777627838000,-476.0,0.0001116,2]
[421425782,1777627838000,-21022.79998568,0.00010355,2]
[421425787,1777627838000,-177.11356231,0.00012241,2]
[421425786,1777627838000,-212.0305998,0.00011165,2]
[421425788,1777627838000,-1265.49404206,0.000129,2]
[421425793,1777627838000,-157.1,0.00013698,2]
[421425792,1777627838000,-155.59,0.00013422,2]
[421425798,1777627838000,-500.0,0.00013698,2]
[421425800,1777627838000,-1000.0,0.00013699,2]
[421425799,1777627838000,-500.0,0.00013698,2]
[421425797,1777627838000,-500.0,0.00013698,2]
[421425803,1777627838000,-500.0,0.00013852,2]
[421425802,1777627838000,-500.0,0.00013852,2]
[421425801,1777627838000,-1000.0,0.00013699,2]
[421425767,1777627838000,-521.57930371,0.00010354,2]
[421425804,1777627838000,-500.0,0.00013852,2]
[421425795,1777627838000,-500.0,0.00013698,2]
[421425789,1777627838000,-1265.494042,0.000129,2]
[421425783,1777627838000,-428.86691432,0.00010618,2]
[421425794,1777627838000,-500.0,0.00013698,2]
[421425759,1777627838000,-500.0,0.00010354,2]
[421425761,1777627838000,-500.0,0.00010354,2]
[421425765,1777627838000,-500.0,0.00010354,2]
[421425760,1777627838000,-286.94117911,0.00010354,2]
[421425771,1777627838000,-500.0,0.00010354,2]
[421425769,1777627838000,-500.0,0.00010354,2]
[421425775,1777627838000,-500.0,0.00010354,2]
[421425770,1777627838000,-500.0,0.00010354,2]
[421425757,1777627838000,-500.0,0.00010354,2]
[421425778,1777627838000,-500.0,0.00010354,2]
[421425781,1777627838000,-16474.1003042,0.00010355,2]
[421425776,1777627838000,-500.0,0.00010354,2]
[421425780,1777627838000,-177.11356235,0.00010355,2]
[421425779,1777627838000,-500.0,0.00010354,2]
[421425777,1777627838000,-500.0,0.00010354,2]
[421425774,1777627838000,-500.0,0.00010354,2]
[421425772,1777627838000,-500.0,0.00010354,2]
[421425773,1777627838000,-500.0,0.00010354,2]
[421425810,1777627839000,-295.78119886,0.00014806,2]
[421425822,1777627839000,-500.0,0.00015197,2]
[421425818,1777627839000,-500.0,0.00015197,2]
[421425813,1777627839000,-1558.76,0.00015177,2]
[421425815,1777627839000,-500.0,0.00015197,2]
[421425812,1777627839000,-500.0,0.00015177,2]
[421425814,1777627839000,-500.0,0.00015197,2]
[421425817,1777627839000,-500.0,0.00015197,2]
[421425805,1777627839000,-7788.69,0.00013853,2]
[421425819,1777627839000,-425.88496669,0.00015197,2]
[421425821,1777627839000,-458.62268997,0.00015197,2]
[421425811,1777627839000,-320.03826381,0.00015086,2]
[421425809,1777627839000,-1265.494042,0.00014269,2]
[421425806,1777627839000,-238.515312,0.00013853,2]
[421425807,1777627839000,-151.0,0.00013853,2]
[421425808,1777627839000,-177.11356231,0.00014128,2]
[421425820,1777627839000,-582.21496809,0.00015197,2]
[421425816,1777627839000,-500.0,0.00015197,2]
[421425823,1777627839000,-500.0,0.00015197,2]
[421425835,1777627839000,-500.0,0.00015197,2]
[421425825,1777627839000,-500.0,0.00015197,2]
[421425841,1777627839000,-291.2970718,0.00015516,2]
[421425824,1777627839000,-500.0,0.00015197,2]
[421425843,1777627839000,-537.6845,0.00015516,2]
[421425844,1777627839000,-321.9387514,0.00015516,2]
[421425840,1777627839000,-162.380719,0.00015516,2]
[421425842,1777627839000,-162.380719,0.00015516,2]
[421425839,1777627839000,-445.202766,0.00015516,2]
[421425837,1777627839000,-106.05756922,0.00015197,2]
[421425836,1777627839000,-393.94243078,0.00015197,2]
[421425838,1777627839000,-359.9820018,0.00015198,2]
[421425830,1777627839000,-500.0,0.00015197,2]
[421425826,1777627839000,-500.0,0.00015197,2]
[421425832,1777627839000,-500.0,0.00015197,2]
[421425828,1777627839000,-500.0,0.00015197,2]
[421425831,1777627839000,-500.0,0.00015197,2]
[421425827,1777627839000,-500.0,0.00015197,2]
[421425834,1777627839000,-500.0,0.00015197,2]
[421425833,1777627839000,-500.0,0.00015197,2]
[421425829,1777627839000,-500.0,0.00015197,2]
[421425880,1777627843000,-1748.75528621,0.00016064,2]
[421425883,1777627843000,-151.0,0.00016438,2]
[421425886,1777627843000,-237.460251,0.00016438,2]
[421425884,1777627843000,-151.0,0.00016438,2]
[421425885,1777627843000,-151.0,0.00016438,2]
[421425879,1777627843000,-557.5788265,0.00016064,2]
[421425881,1777627843000,-302.62139999,0.00016064,2]
[421425878,1777627843000,-445.202766,0.00016064,2]
[421425868,1777627843000,-215.7457486,0.00015516,2]
[421425876,1777627843000,-537.68449999,0.00015791,2]
[421425874,1777627843000,-599.60298507,0.00015681,2]
[421425877,1777627843000,-177.11356231,0.00016014,2]
[421425873,1777627843000,-1265.494042,0.00015676,2]
[421425872,1777627843000,-578.20924308,0.00015626,2]
[421425869,1777627843000,-2150.738,0.00015516,2]
[421425871,1777627843000,-557.5788265,0.00015571,2]
[421425870,1777627843000,-157.16736882,0.00015516,2]
[421425888,1777627843000,-394.105499,0.00016438,2]
[421425875,1777627843000,-621.78829552,0.00015736,2]
[421425889,1777627843000,-394.105499,0.00016438,2]
[421425882,1777627843000,-178.9386198,0.00016064,2]
[421425890,1777627843000,-394.105499,0.00016438,2]
[421425887,1777627843000,-394.105499,0.00016438,2]
[421425906,1777627843000,-767.64323851,0.00016561,2]
[421425904,1777627843000,-272.211783,0.00016561,2]
[421425909,1777627843000,-365.29201126,0.00016561,2]
[421425907,1777627843000,-774.908007,0.00016561,2]
[421425903,1777627843000,-272.211783,0.00016561,2]
[421425902,1777627843000,-272.211783,0.00016561,2]
[421425905,1777627843000,-7.26476849,0.00016561,2]
[421425901,1777627843000,-272.211783,0.00016561,2]
[421425899,1777627843000,-88.1770865,0.0001656,2]
[421425908,1777627843000,-774.908007,0.00016561,2]
[421425900,1777627843000,-151.0,0.0001656,2]
[421425893,1777627843000,-200.0,0.0001656,2]
[421425894,1777627843000,-394.105499,0.0001656,2]
[421425895,1777627843000,-394.105499,0.0001656,2]
[421425892,1777627843000,-151.0,0.00016438,2]
[421425891,1777627843000,-151.0,0.00016438,2]
[421425897,1777627843000,-394.105499,0.0001656,2]
[421425896,1777627843000,-394.105499,0.0001656,2]
[421425910,1777627843000,-400.85816333,0.00016561,2]
[421425898,1777627843000,-62.8229135,0.0001656,2]
[421425931,1777627846000,-151.0,0.000166,2]
[421425930,1777627846000,-151.0,0.000166,2]
[421425933,1777627846000,-578.20924308,0.00016612,2]
[421425932,1777627846000,-151.0,0.000166,2]
[421425934,1777627846000,-2312.83697232,0.00016612,2]
[421425935,1777627846000,-500.0,0.00016661,2]
[421425928,1777627846000,-151.0,0.000166,2]
[421425940,1777627846000,-151.0,0.00016989,2]
[421425926,1777627846000,-151.0,0.000166,2]
[421425917,1777627846000,-151.0,0.00016561,2]
[421425927,1777627846000,-151.0,0.000166,2]
[421425925,1777627846000,-501.25440176,0.00016576,5]
[421425924,1777627846000,-151.0,0.00016561,2]
[421425920,1777627846000,-394.105499,0.00016561,2]
[421425921,1777627846000,-394.105499,0.00016561,2]
[421425922,1777627846000,-394.105499,0.00016561,2]
[421425918,1777627846000,-394.105499,0.00016561,2]
[421425916,1777627846000,-8.75783241,0.00016561,2]
[421425939,1777627846000,-1558.76,0.00016989,2]
[421425929,1777627846000,-151.0,0.000166,2]
[421425938,1777627846000,-500.0,0.00016989,2]
[421425923,1777627846000,-162.407205,0.00016561,2]
[421425936,1777627846000,-1558.76,0.00016661,2]
[421425937,1777627846000,-4000.0,0.00016712,2]
[421425960,1777627846000,-500.0,0.00017,2]
[421425955,1777627846000,-151.0,0.00017,2]
[421425956,1777627846000,-394.105499,0.00017,2]
[421425959,1777627846000,-394.105499,0.00017,2]
[421425953,1777627846000,-774.908007,0.00017,2]
[421425961,1777627846000,-1265.494042,0.00017084,2]
[421425954,1777627846000,-774.908007,0.00017,2]
[421425957,1777627846000,-394.105499,0.00017,2]
[421425952,1777627846000,-774.908007,0.00017,2]
[421425958,1777627846000,-394.105499,0.00017,2]
[421425945,1777627846000,-3675.4712595,0.00017,2]
[421425950,1777627846000,-272.211783,0.00017,2]
[421425949,1777627846000,-272.211783,0.00017,2]
[421425947,1777627846000,-72.4448527,0.00017,2]
[421425948,1777627846000,-272.211783,0.00017,2]
[421425944,1777627846000,-1365.04804133,0.00017,2]
[421425946,1777627846000,-199.7669303,0.00017,2]
[421425942,1777627846000,-500.0,0.00016999,2]
[421425943,1777627846000,-500.0,0.00016999,2]
[421425951,1777627846000,-774.908007,0.00017,2]
[421425941,1777627846000,-571.06837601,0.00016999,2]
[421425995,1777627847000,-2020.20784816,0.000176,2]
[421426000,1777627847000,-1137.221031,0.0001764,2]
[421426002,1777627847000,-160.0,0.0001764,2]
[421425999,1777627847000,-160.0,0.0001764,2]
[421425992,1777627847000,-506.43936833,0.000176,2]
[421425994,1777627847000,-1586.64972698,0.000176,2]
[421425991,1777627847000,-500.0,0.00017599,2]
[421425990,1777627847000,-1558.76,0.00017599,2]
[421426006,1777627847000,-774.908007,0.00017659,2]
[421425997,1777627847000,-1821.52952564,0.000176,2]
[421426004,1777627847000,-181.26176,0.0001764,2]
[421426011,1777627847000,-185.0,0.00017659,2]
[421425996,1777627847000,-2453.76596942,0.000176,2]
[421426001,1777627847000,-2114.442063,0.0001764,2]
[421426003,1777627847000,-170.63088,0.0001764,2]
[421425998,1777627847000,-200.73689,0.0001764,2]
[421426018,1777627847000,-151.5,0.00017671,2]
[421426008,1777627847000,-774.908007,0.00017659,2]
[421426010,1777627847000,-590.28,0.00017659,2]
[421426017,1777627847000,-151.5,0.00017671,2]
[421426009,1777627847000,-774.908007,0.00017659,2]
[421425988,1777627847000,-394.105496,0.00017598,2]
[421426007,1777627847000,-774.908007,0.00017659,2]
[421426005,1777627847000,-222.7937567,0.00017658,2]
[421425989,1777627847000,-500.0,0.00017599,2]
[421425977,1777627847000,-272.211783,0.00017598,2]
[421425986,1777627847000,-394.105499,0.00017598,2]
[421425963,1777627847000,-537.6845,0.0001716,2]
[421425962,1777627847000,-357.44533361,0.00017086,2]
[421425970,1777627847000,-300.85387509,0.000175,2]
[421425967,1777627847000,-207.92012,0.00017344,2]
[421425966,1777627847000,-288.10291327,0.000173,2]
[421425964,1777627847000,-2398.4119403,0.0001716,2]
[421425969,1777627847000,-792.0,0.000174,2]
[421425971,1777627847000,-398.50434266,0.00017511,2]
[421425965,1777627847000,-300.85387509,0.000173,2]
[421425968,1777627847000,-153.374,0.00017344,2]
[421425973,1777627847000,-829.0,0.00017578,2]
[421425993,1777627847000,-1163.98444699,0.000176,2]
[421425972,1777627847000,-822.0,0.00017513,2]
[421425975,1777627847000,-500.0,0.00017597,2]
[421425979,1777627847000,-272.211783,0.00017598,2]
[421425980,1777627847000,-774.908007,0.00017598,2]
[421425974,1777627847000,-500.0,0.00017597,2]
[421425976,1777627847000,-272.211783,0.00017598,2]
[421425981,1777627847000,-774.908007,0.00017598,2]
[421425982,1777627847000,-774.908007,0.00017598,2]
[421425984,1777627847000,-151.0,0.00017598,2]
[421425985,1777627847000,-394.105499,0.00017598,2]
[421425983,1777627847000,-774.908007,0.00017598,2]
[421425987,1777627847000,-394.105499,0.00017598,2]
[421425978,1777627847000,-272.211783,0.00017598,2]
[421426014,1777627847000,-272.211783,0.00017671,2]
[421426021,1777627847000,-160.02092301,0.00017671,2]
[421426015,1777627847000,-272.211783,0.00017671,2]
[421426055,1777627847000,-155.0,0.00017965,2]
[421426051,1777627847000,-151.0,0.000179,2]
[421426047,1777627847000,-272.211784,0.00017796,2]
[421426048,1777627847000,-300.85387509,0.000178,2]
[421426050,1777627847000,-289.734,0.00017899,2]
[421426046,1777627847000,-272.211783,0.00017796,2]
[421426049,1777627847000,-263.854,0.00017871,2]
[421426053,1777627847000,-151.0,0.000179,2]
[421426052,1777627847000,-151.0,0.000179,2]
[421426057,1777627847000,-500.0,0.00017998,2]
[421426067,1777627847000,-1558.76,0.00017999,2]
[421426056,1777627847000,-500.0,0.00017998,2]
[421426059,1777627847000,-500.0,0.00017999,2]
[421426058,1777627847000,-500.0,0.00017999,2]
[421426068,1777627847000,-1558.76,0.00017999,2]
[421426060,1777627847000,-500.0,0.00017999,2]
[421426061,1777627847000,-500.0,0.00017999,2]
[421426065,1777627847000,-1558.76,0.00017999,2]
[421426062,1777627847000,-500.0,0.00017999,2]
[421426064,1777627847000,-1558.76,0.00017999,2]
[421426063,1777627847000,-404.05656839,0.00017999,2]
[421426066,1777627847000,-1558.76,0.00017999,2]
[421426016,1777627847000,-272.211783,0.00017671,2]
[421426054,1777627847000,-177.11356231,0.000179,2]
[421426043,1777627847000,-1558.76,0.00017796,2]
[421426045,1777627847000,-272.211783,0.00017796,2]
[421426040,1777627847000,-192.88512203,0.000177,2]
[421426012,1777627847000,-4000.0,0.00017671,2]
[421426013,1777627847000,-272.211783,0.00017671,2]
[421426019,1777627847000,-151.5,0.00017671,2]
[421426029,1777627847000,-1558.76,0.00017697,2]
[421426025,1777627847000,-1558.76,0.00017695,2]
[421426030,1777627847000,-1558.76,0.00017697,2]
[421426024,1777627847000,-500.0,0.00017695,2]
[421426022,1777627847000,-500.0,0.00017683,2]
[421426044,1777627847000,-272.211783,0.00017796,2]
[421426031,1777627847000,-1558.76,0.00017697,2]
[421426023,1777627847000,-600.0,0.00017684,2]
[421426026,1777627847000,-500.0,0.00017697,2]
[421426020,1777627847000,-151.5,0.00017671,2]
[421426028,1777627847000,-500.0,0.00017697,2]
[421426042,1777627847000,-500.0,0.00017796,2]
[421426027,1777627847000,-500.0,0.00017697,2]
[421426041,1777627847000,-2487.15318209,0.00017708,2]
[421426032,1777627847000,-774.908007,0.00017697,2]
[421426038,1777627847000,-195.74498272,0.000177,2]
[421426039,1777627847000,-187.80200934,0.000177,2]
[421426037,1777627847000,-164.28456673,0.000177,2]
[421426036,1777627847000,-300.85387509,0.000177,2]
[421426035,1777627847000,-774.90801,0.00017697,2]
[421426033,1777627847000,-774.908007,0.00017697,2]
[421426034,1777627847000,-774.908007,0.00017697,2]
[421426078,1777627848000,-1558.98935013,0.00017999,2]
[421426069,1777627848000,-1558.76,0.00017999,2]
[421426071,1777627848000,-1558.76,0.00017999,2]
[421426073,1777627848000,-1558.76,0.00017999,2]
[421426077,1777627848000,-1558.76,0.00017999,2]
[421426076,1777627848000,-1558.76,0.00017999,2]
[421426074,1777627848000,-1558.76,0.00017999,2]
[421426072,1777627848000,-1558.76,0.00017999,2]
[421426079,1777627848000,-500.0,0.00017999,2]
[421426075,1777627848000,-1558.76,0.00017999,2]
[421426070,1777627848000,-1558.76,0.00017999,2]
[421426082,1777627848000,-500.0,0.00017999,2]
[421426081,1777627848000,-500.0,0.00017999,2]
[421426084,1777627848000,-500.0,0.00017999,2]
[421426088,1777627848000,-6282.97779725,0.00018,2]
[421426083,1777627848000,-500.0,0.00017999,2]
[421426085,1777627848000,-454.31704092,0.00017999,2]
[421426086,1777627848000,-45.68295908,0.00017999,2]
[421426087,1777627848000,-211.80761641,0.00017999,2]
[421426080,1777627848000,-500.0,0.00017999,2]
[421426089,1777627856000,80205.88739948,7.6e-05,2]
[421426093,1777627871000,25181.31706952,7.857e-05,2]
[421426202,1777628983000,178.4786866,8.01e-05,2]
[421426218,1777628991000,5000.0,8.01e-05,2]
[421426220,1777628999000,950.11980275,8.01e-05,2]
[421426222,1777629015000,3909.02065222,8.01e-05,2]
[421426231,1777629032000,-534.0,8.105e-05,2]
[421426232,1777629032000,-205.29299276,8.396e-05,2]
[421426233,1777629032000,-152.0,9.026e-05,2]
[421426235,1777629032000,-152.0,9.044e-05,7]
[421426234,1777629032000,-152.0,9.044e-05,7]
[421426238,1777629032000,-300.0,9.424e-05,2]
[421426241,1777629032000,-300.0,9.424e-05,2]
[421426236,1777629032000,-300.0,9.424e-05,2]
[421426240,1777629032000,-191.53537639,9.424e-05,2]
[421426243,1777629032000,-881.69903507,9.424e-05,2]
[421426242,1777629032000,-318.30096493,9.424e-05,2]
[421426244,1777629032000,-7481.91318988,9.425e-05,2]
[421426239,1777629032000,-108.46462361,9.424e-05,2]
[421426251,1777629038000,-25194.30376644,9.425e-05,2]
[421426253,1777629038000,-300.0,9.612e-05,2]
[421426255,1777629038000,-300.0,9.612e-05,2]
[421426258,1777629038000,-300.0,9.612e-05,2]
[421426252,1777629038000,-300.0,9.612e-05,2]
[421426257,1777629038000,-300.0,9.612e-05,2]
[421426256,1777629038000,-300.0,9.612e-05,2]
[421426254,1777629038000,-300.0,9.612e-05,2]
[421426259,1777629038000,-300.0,9.612e-05,2]
[421426260,1777629038000,-300.0,9.612e-05,2]
[421426262,1777629038000,-300.0,9.612e-05,2]
[421426263,1777629038000,-300.0,9.612e-05,2]
[421426269,1777629038000,-4058.2178829,0.0001,2]
[421426265,1777629038000,-300.0,9.612e-05,2]
[421426264,1777629038000,-300.0,9.612e-05,2]
[421426268,1777629038000,-152.0,9.996e-05,2]
[421426267,1777629038000,-600.0,9.612e-05,2]
[421426266,1777629038000,-300.0,9.612e-05,2]
[421426261,1777629038000,-300.0,9.612e-05,2]
[421426270,1777629040000,-1200.36558608,0.0001,2]
[421426271,1777629040000,-623.8679506,0.0001,2]
[421426275,1777629040000,-12512.1987194,0.0001,2]
[421426273,1777629040000,-1197.10362736,0.0001,2]
[421426274,1777629040000,-10628.3012806,0.0001,2]
[421426272,1777629040000,-6718.501097,0.0001,2]
[421426305,1777629043000,-279.19847015,0.00012396,2]
[421426304,1777629043000,-204.65857922,0.000119,5]
[421426302,1777629043000,-151.0,0.00011631,2]
[421426303,1777629043000,-382.74849313,0.000119,5]
[421426301,1777629043000,-506.5484785,0.00011631,2]
[421426296,1777629043000,-180.0,0.00011403,2]
[421426300,1777629043000,-357.4515215,0.00011631,2]
[421426298,1777629043000,-400.0,0.00011403,2]
[421426289,1777629043000,-676.07929347,0.0001,2]
[421426295,1777629043000,-151.0,0.00010959,2]